[Event "Titled Tuesday Blitz November 22 Late 2022"]
[White "Cortes Orihuela, Javier"]
[Black "Roque Sola, Jose Luis"]
[WhiteFideId "3414329"]
[BlackFideId "5120390"]
[WhiteElo "2080"]
[BlackElo "2117"]
[Result "1-0"]
[Round "07"]
[TimeControl "180+1"]
[Date "2022.11.23"]
[WhiteClock "0:01:19"]
[BlackClock "0:00:04"]

1. d4 {[%clk 0:03:00]}  Nf6 {[%clk 0:02:55]} 2. c4 {[%clk 0:03:00]}  g6 {[%clk 0:02:53]} 3. Nc3 {[%clk 0:03:01]}  Bg7 {[%clk 0:02:52]} 4. e4 {[%clk 0:03:01]}  d6 {[%clk 0:02:51]} 5. Nf3 {[%clk 0:03:02]}  O-O {[%clk 0:02:51]} 6. h3 {[%clk 0:03:03]}  c5 {[%clk 0:02:50]} 7. d5 {[%clk 0:03:03]}  a6 {[%clk 0:02:38]} 8. a4 {[%clk 0:03:03]}  b6 {[%clk 0:02:38]} 9. Bd3 {[%clk 0:03:02]}  Nbd7 {[%clk 0:02:31]} 10. O-O {[%clk 0:03:02]}  Ne5 {[%clk 0:02:30]} 11. Be2 {[%clk 0:02:58]}  Nxf3+ {[%clk 0:02:27]} 12. Bxf3 {[%clk 0:02:58]}  Bd7 {[%clk 0:02:21]} 13. Be2 {[%clk 0:02:58]}  Qc7 {[%clk 0:01:56]} 14. f4 {[%clk 0:02:58]}  b5 {[%clk 0:01:21]} 15. axb5 {[%clk 0:02:55]}  axb5 {[%clk 0:01:21]} 16. Rxa8 {[%clk 0:02:55]}  Rxa8 {[%clk 0:01:22]} 17. cxb5 {[%clk 0:02:56]}  c4 {[%clk 0:01:10]} 18. Be3 {[%clk 0:02:54]}  Ne8 {[%clk 0:01:02]} 19. Bd4 {[%clk 0:02:48]}  Bxd4+ {[%clk 0:00:59]} 20. Qxd4 {[%clk 0:02:49]}  Rc8 {[%clk 0:00:48]} 21. Ra1 {[%clk 0:02:48]}  Nf6 {[%clk 0:00:38]} 22. e5 {[%clk 0:02:30]}  dxe5 {[%clk 0:00:36]} 23. fxe5 {[%clk 0:02:31]}  Ne8 {[%clk 0:00:26]} 24. Ra7 {[%clk 0:02:27]}  Qd8 {[%clk 0:00:15]} 25. Bxc4 {[%clk 0:02:07]}  Rxc4 {[%clk 0:00:14]} 26. Rxd7 {[%clk 0:01:52]}  Qc8 {[%clk 0:00:15]} 27. Qa7 {[%clk 0:01:41]}  Nc7 {[%clk 0:00:04]} 28. Rxe7 {[%clk 0:01:32]}  Rxc3 {[%clk 0:00:04]} 29. bxc3 {[%clk 0:01:28]}  Nxd5 {[%clk 0:00:04]} 30. Rxf7 {[%clk 0:01:19]} 1-0


[Site "https://www.chess.com"]

[Event "Titled Tuesday Blitz November 22 Late 2022"]
[White "Daggupati, Balaji"]
[Black "Lashkin, Jegor"]
[WhiteFideId "2090759"]
[BlackFideId "13907808"]
[WhiteElo "2702"]
[BlackElo "2368"]
[Result "0-1"]
[Round "07"]
[TimeControl "180+1"]
[Date "2022.11.22"]
[WhiteClock "0:00:07"]
[BlackClock "0:00:06"]

1. e4 {[%clk 0:02:58]}  c5 {[%clk 0:02:59]} 2. Nf3 {[%clk 0:02:57]}  d6 {[%clk 0:03:00]} 3. d4 {[%clk 0:02:57]}  cxd4 {[%clk 0:03:00]} 4. Nxd4 {[%clk 0:02:58]}  Nf6 {[%clk 0:03:01]} 5. Nc3 {[%clk 0:02:58]}  a6 {[%clk 0:03:02]} 6. Qe2 {[%clk 0:02:59]}  Nbd7 {[%clk 0:02:59]} 7. Bg5 {[%clk 0:02:56]}  Qc7 {[%clk 0:02:56]} 8. O-O-O {[%clk 0:02:54]}  g6 {[%clk 0:02:53]} 9. f4 {[%clk 0:02:53]}  Bg7 {[%clk 0:02:49]} 10. Kb1 {[%clk 0:02:50]}  O-O {[%clk 0:02:43]} 11. g4 {[%clk 0:02:27]}  e5 {[%clk 0:02:37]} 12. Nf3 {[%clk 0:02:21]}  b5 {[%clk 0:02:25]} 13. Bxf6 {[%clk 0:02:16]}  Nxf6 {[%clk 0:02:24]} 14. g5 {[%clk 0:02:17]}  Nh5 {[%clk 0:02:23]} 15. Nd5 {[%clk 0:02:14]}  Qc5 {[%clk 0:01:46]} 16. f5 {[%clk 0:02:06]}  gxf5 {[%clk 0:01:39]} 17. exf5 {[%clk 0:02:07]}  f6 {[%clk 0:01:03]} 18. Nh4 {[%clk 0:01:54]}  Nf4 {[%clk 0:00:58]} 19. Nxf4 {[%clk 0:01:53]}  exf4 {[%clk 0:00:59]} 20. gxf6 {[%clk 0:01:54]}  Bxf6 {[%clk 0:00:50]} 21. Qg2+ {[%clk 0:01:53]}  Kh8 {[%clk 0:00:48]} 22. Qxa8 {[%clk 0:01:52]}  Qb4 {[%clk 0:00:33]} 23. c3 {[%clk 0:01:40]}  Bxc3 {[%clk 0:00:31]} 24. Qg2 {[%clk 0:01:01]}  Bb7 {[%clk 0:00:31]} 25. Ng6+ {[%clk 0:01:00]}  hxg6 {[%clk 0:00:13]} 26. Qh3+ {[%clk 0:01:00]}  Kg7 {[%clk 0:00:13]} 27. Qxc3+ {[%clk 0:00:58]}  Qxc3 {[%clk 0:00:13]} 28. bxc3 {[%clk 0:00:58]}  Bxh1 {[%clk 0:00:13]} 29. Bd3 {[%clk 0:00:57]}  Bg2 {[%clk 0:00:05]} 30. fxg6 {[%clk 0:00:52]}  d5 {[%clk 0:00:06]} 31. Bf1 {[%clk 0:00:48]}  Be4+ {[%clk 0:00:06]} 32. Kb2 {[%clk 0:00:47]}  Kxg6 {[%clk 0:00:07]} 33. a4 {[%clk 0:00:46]}  Rh8 {[%clk 0:00:07]} 34. Rd2 {[%clk 0:00:44]}  bxa4 {[%clk 0:00:07]} 35. c4 {[%clk 0:00:42]}  Rb8+ {[%clk 0:00:07]} 36. Ka3 {[%clk 0:00:42]}  dxc4 {[%clk 0:00:06]} 37. Bxc4 {[%clk 0:00:42]}  Rb6 {[%clk 0:00:04]} 38. h4 {[%clk 0:00:36]}  f3 {[%clk 0:00:03]} 39. Kxa4 {[%clk 0:00:33]}  Kf5 {[%clk 0:00:03]} 40. Ka5 {[%clk 0:00:33]}  Rh6 {[%clk 0:00:04]} 41. Bxa6 {[%clk 0:00:33]}  Rxh4 {[%clk 0:00:04]} 42. Rd8 {[%clk 0:00:33]}  Kf4 {[%clk 0:00:04]} 43. Rf8+ {[%clk 0:00:32]}  Ke3 {[%clk 0:00:04]} 44. Kb6 {[%clk 0:00:32]}  Rh6+ {[%clk 0:00:05]} 45. Ka7 {[%clk 0:00:32]}  Rh5 {[%clk 0:00:05]} 46. Kb6 {[%clk 0:00:31]}  Rf5 {[%clk 0:00:05]} 47. Re8 {[%clk 0:00:29]}  Kd4 {[%clk 0:00:04]} 48. Rd8+ {[%clk 0:00:27]}  Rd5 {[%clk 0:00:04]} 49. Rf8 {[%clk 0:00:27]}  Bf5 {[%clk 0:00:03]} 50. Bf1 {[%clk 0:00:19]}  f2 {[%clk 0:00:04]} 51. Bg2 {[%clk 0:00:18]}  Ke3 {[%clk 0:00:03]} 52. Re8+ {[%clk 0:00:16]}  Kf4 {[%clk 0:00:02]} 53. Rf8 {[%clk 0:00:16]}  Rd2 {[%clk 0:00:02]} 54. Bh3 {[%clk 0:00:15]}  Rd5 {[%clk 0:00:02]} 55. Bg2 {[%clk 0:00:14]}  Kg3 {[%clk 0:00:02]} 56. Bf1 {[%clk 0:00:13]}  Re5 {[%clk 0:00:03]} 57. Kc7 {[%clk 0:00:12]}  Kf4 {[%clk 0:00:03]} 58. Bh3 {[%clk 0:00:11]}  Kg3 {[%clk 0:00:03]} 59. Bf1 {[%clk 0:00:10]}  Bg4 {[%clk 0:00:03]} 60. Kd6 {[%clk 0:00:10]}  Re1 {[%clk 0:00:04]} 61. Bb5 {[%clk 0:00:10]}  Be2 {[%clk 0:00:04]} 62. Bxe2 {[%clk 0:00:04]}  Rxe2 {[%clk 0:00:04]} 63. Kd5 {[%clk 0:00:05]}  Re3 {[%clk 0:00:04]} 64. Kd4 {[%clk 0:00:05]}  Rf3 {[%clk 0:00:04]} 65. Rg8+ {[%clk 0:00:06]}  Kh4 {[%clk 0:00:04]} 66. Rh8+ {[%clk 0:00:06]}  Kg5 {[%clk 0:00:05]} 67. Rg8+ {[%clk 0:00:06]}  Kh6 {[%clk 0:00:05]} 68. Rh8+ {[%clk 0:00:06]}  Kg7 {[%clk 0:00:06]} 69. Rh1 {[%clk 0:00:07]}  f1=Q {[%clk 0:00:06]} 70. Rxf1 {[%clk 0:00:07]} 0-1


[Site "https://www.chess.com"]

[Event "Titled Tuesday Blitz November 22 Late 2022"]
[White "Gascon Del Nogal, Jose Rafael"]
[Black "Vlassov, Nikolai"]
[WhiteFideId "3902463"]
[BlackFideId "4103360"]
[WhiteElo "2473"]
[BlackElo "2324"]
[Result "1-0"]
[Round "07"]
[TimeControl "180+1"]
[Date "2022.11.23"]
[WhiteClock "0:00:31"]
[BlackClock "0:00:55"]

1. Nf3 {[%clk 0:03:00]}  c5 {[%clk 0:02:59]} 2. e4 {[%clk 0:03:00]}  d6 {[%clk 0:02:59]} 3. d4 {[%clk 0:03:00]}  cxd4 {[%clk 0:02:59]} 4. Nxd4 {[%clk 0:03:01]}  Nf6 {[%clk 0:03:00]} 5. f3 {[%clk 0:02:59]}  e5 {[%clk 0:02:58]} 6. Nb3 {[%clk 0:02:57]}  d5 {[%clk 0:02:59]} 7. Bg5 {[%clk 0:02:56]}  dxe4 {[%clk 0:02:47]} 8. Qxd8+ {[%clk 0:02:45]}  Kxd8 {[%clk 0:02:47]} 9. Nc3 {[%clk 0:02:44]}  exf3 {[%clk 0:02:38]} 10. gxf3 {[%clk 0:02:41]}  Be6 {[%clk 0:02:28]} 11. O-O-O+ {[%clk 0:02:31]}  Kc8 {[%clk 0:02:27]} 12. f4 {[%clk 0:01:48]}  Nc6 {[%clk 0:02:14]} 13. Bg2 {[%clk 0:01:45]}  exf4 {[%clk 0:02:10]} 14. Bxf4 {[%clk 0:01:42]}  Bb4 {[%clk 0:02:07]} 15. Nb5 {[%clk 0:01:37]}  Ne8 {[%clk 0:01:55]} 16. a3 {[%clk 0:01:30]}  Be7 {[%clk 0:01:54]} 17. Rhe1 {[%clk 0:01:20]}  Bg4 {[%clk 0:01:30]} 18. Bxc6 {[%clk 0:01:05]}  bxc6 {[%clk 0:01:20]} 19. Rxe7 {[%clk 0:01:03]}  Bxd1 {[%clk 0:01:10]} 20. Nxa7+ {[%clk 0:00:58]}  Rxa7 {[%clk 0:01:10]} 21. Rxa7 {[%clk 0:00:57]}  Bf3 {[%clk 0:01:04]} 22. Nc5 {[%clk 0:00:57]}  Kd8 {[%clk 0:01:01]} 23. Rxf7 {[%clk 0:00:50]}  h6 {[%clk 0:00:55]} 24. Rd7+ {[%clk 0:00:48]}  Kc8 {[%clk 0:00:55]} 25. Ra7 {[%clk 0:00:49]}  Kd8 {[%clk 0:00:56]} 26. a4 {[%clk 0:00:32]}  Rf8 {[%clk 0:00:55]} 27. Ne6+ {[%clk 0:00:31]} 1-0


[Site "https://www.chess.com"]

[Event "Titled Tuesday Blitz November 22 Late 2022"]
[White "Gonzalez, Francisco Silva"]
[Black "Baltaci, Ismail Tarik"]
[WhiteFideId "1512285"]
[BlackFideId "6365213"]
[WhiteElo "2159"]
[BlackElo "2327"]
[Result "0-1"]
[Round "07"]
[TimeControl "180+1"]
[Date "2022.11.23"]
[WhiteClock "0:00:19"]
[BlackClock "0:00:28"]

1. d4 {[%clk 0:02:56]}  d6 {[%clk 0:02:59]} 2. e4 {[%clk 0:02:55]}  Nf6 {[%clk 0:02:58]} 3. f3 {[%clk 0:02:56]}  e5 {[%clk 0:02:56]} 4. d5 {[%clk 0:02:53]}  g6 {[%clk 0:02:55]} 5. c4 {[%clk 0:02:52]}  Bg7 {[%clk 0:02:56]} 6. Be3 {[%clk 0:02:53]}  O-O {[%clk 0:02:56]} 7. Nc3 {[%clk 0:02:53]}  a5 {[%clk 0:02:56]} 8. Bd3 {[%clk 0:02:52]}  Na6 {[%clk 0:02:54]} 9. Na4 {[%clk 0:02:51]}  Bd7 {[%clk 0:02:52]} 10. Ne2 {[%clk 0:02:50]}  h5 {[%clk 0:02:47]} 11. Bg5 {[%clk 0:02:49]}  Qe8 {[%clk 0:02:45]} 12. Nac3 {[%clk 0:02:48]}  Nh7 {[%clk 0:02:43]} 13. Bh4 {[%clk 0:02:47]}  Bh6 {[%clk 0:02:42]} 14. Nb5 {[%clk 0:02:46]}  Be3 {[%clk 0:02:40]} 15. a3 {[%clk 0:02:37]}  f5 {[%clk 0:02:39]} 16. Qc2 {[%clk 0:02:34]}  Kh8 {[%clk 0:02:23]} 17. Qc3 {[%clk 0:02:30]}  f4 {[%clk 0:02:18]} 18. Qxa5 {[%clk 0:02:19]}  g5 {[%clk 0:02:08]} 19. Bf2 {[%clk 0:02:17]}  Bxf2+ {[%clk 0:02:09]} 20. Kxf2 {[%clk 0:02:16]}  b6 {[%clk 0:02:06]} 21. Qc3 {[%clk 0:02:16]}  g4 {[%clk 0:02:05]} 22. b4 {[%clk 0:02:14]}  Ng5 {[%clk 0:01:55]} 23. a4 {[%clk 0:02:00]}  Qe7 {[%clk 0:01:54]} 24. Rag1 {[%clk 0:01:54]}  gxf3 {[%clk 0:01:53]} 25. gxf3 {[%clk 0:01:49]}  Nh3+ {[%clk 0:01:53]} 26. Ke1 {[%clk 0:01:50]}  Qh4+ {[%clk 0:01:51]} 27. Kd2 {[%clk 0:01:50]}  Nxg1 {[%clk 0:01:51]} 28. Rxg1 {[%clk 0:01:46]}  Rg8 {[%clk 0:01:51]} 29. Qc1 {[%clk 0:01:40]}  Rxg1 {[%clk 0:01:49]} 30. Qxg1 {[%clk 0:01:37]}  Rg8 {[%clk 0:01:49]} 31. Qb1 {[%clk 0:01:29]}  Qf2 {[%clk 0:01:47]} 32. Kc3 {[%clk 0:01:27]}  Qxf3 {[%clk 0:01:46]} 33. a5 {[%clk 0:01:27]}  bxa5 {[%clk 0:01:45]} 34. bxa5 {[%clk 0:01:26]}  Nc5 {[%clk 0:01:46]} 35. Nxc7 {[%clk 0:01:25]}  Nxe4+ {[%clk 0:01:45]} 36. Kb4 {[%clk 0:01:24]}  Rb8+ {[%clk 0:01:43]} 37. Nb5 {[%clk 0:01:23]}  Nc5 {[%clk 0:01:41]} 38. Nc1 {[%clk 0:01:05]}  e4 {[%clk 0:01:40]} 39. Be2 {[%clk 0:01:01]}  Qe3 {[%clk 0:01:39]} 40. Qb2+ {[%clk 0:01:00]}  Kh7 {[%clk 0:01:30]} 41. Qf6 {[%clk 0:01:00]}  Qd2+ {[%clk 0:01:28]} 42. Qc3 {[%clk 0:00:45]}  Qxc3+ {[%clk 0:01:27]} 43. Kxc3 {[%clk 0:00:43]}  f3 {[%clk 0:01:27]} 44. Nxd6 {[%clk 0:00:41]}  fxe2 {[%clk 0:01:23]} 45. Nxe2 {[%clk 0:00:41]}  Rb3+ {[%clk 0:01:21]} 46. Kd4 {[%clk 0:00:41]}  Nb7 {[%clk 0:01:03]} 47. Nxb7 {[%clk 0:00:40]}  Rxb7 {[%clk 0:01:04]} 48. Kxe4 {[%clk 0:00:39]}  Ra7 {[%clk 0:01:04]} 49. c5 {[%clk 0:00:38]}  Rxa5 {[%clk 0:01:05]} 50. c6 {[%clk 0:00:39]}  Bg4 {[%clk 0:00:57]} 51. Nd4 {[%clk 0:00:37]}  Kg6 {[%clk 0:00:46]} 52. d6 {[%clk 0:00:38]}  Kf7 {[%clk 0:00:44]} 53. d7 {[%clk 0:00:33]}  Ke7 {[%clk 0:00:43]} 54. Kf4 {[%clk 0:00:30]}  Rc5 {[%clk 0:00:38]} 55. Kg3 {[%clk 0:00:29]}  Rc4 {[%clk 0:00:37]} 56. Nb5 {[%clk 0:00:20]}  Rxc6 {[%clk 0:00:36]} 57. h3 {[%clk 0:00:20]}  Bxd7 {[%clk 0:00:34]} 58. Nd4 {[%clk 0:00:20]}  Rc3+ {[%clk 0:00:31]} 59. Kh2 {[%clk 0:00:21]}  Rxh3+ {[%clk 0:00:31]} 60. Kg2 {[%clk 0:00:21]}  Rd3 {[%clk 0:00:32]} 61. Nf5+ {[%clk 0:00:15]}  Bxf5 {[%clk 0:00:32]} 62. Kh2 {[%clk 0:00:16]}  Kf6 {[%clk 0:00:32]} 63. Kg2 {[%clk 0:00:16]}  Kg5 {[%clk 0:00:32]} 64. Kh2 {[%clk 0:00:17]}  Kf4 {[%clk 0:00:33]} 65. Kg2 {[%clk 0:00:18]}  Rd2+ {[%clk 0:00:33]} 66. Kf1 {[%clk 0:00:18]}  Ke3 {[%clk 0:00:32]} 67. Ke1 {[%clk 0:00:18]}  h4 {[%clk 0:00:29]} 68. Kf1 {[%clk 0:00:19]}  h3 {[%clk 0:00:29]} 69. Kg1 {[%clk 0:00:19]}  h2+ {[%clk 0:00:28]} 70. Kf1 {[%clk 0:00:19]}  h1=Q# {[%clk 0:00:28]} 0-1


[Site "https://www.chess.com"]

[Event "Titled Tuesday Blitz November 22 Late 2022"]
[White "Grave, Jacob Templen"]
[Black "Liu, Kelsey"]
[WhiteFideId "1542656"]
[BlackFideId "30944481"]
[WhiteElo "2126"]
[BlackElo "2277"]
[Result "1/2-1/2"]
[Round "07"]
[TimeControl "180+1"]
[Date "2022.11.23"]
[WhiteClock "0:00:03"]
[BlackClock "0:00:10"]

1. e4 {[%clk 0:03:00]}  c5 {[%clk 0:03:00]} 2. Nf3 {[%clk 0:02:59]}  e6 {[%clk 0:03:00]} 3. d4 {[%clk 0:02:54]}  cxd4 {[%clk 0:03:01]} 4. Nxd4 {[%clk 0:02:54]}  Nc6 {[%clk 0:02:58]} 5. Nc3 {[%clk 0:02:53]}  Nf6 {[%clk 0:02:58]} 6. Be3 {[%clk 0:02:38]}  Bb4 {[%clk 0:02:56]} 7. Bd3 {[%clk 0:02:31]}  O-O {[%clk 0:02:54]} 8. O-O {[%clk 0:02:25]}  e5 {[%clk 0:02:52]} 9. Nb3 {[%clk 0:02:07]}  d6 {[%clk 0:02:41]} 10. Nd5 {[%clk 0:02:00]}  Nxd5 {[%clk 0:02:40]} 11. exd5 {[%clk 0:02:01]}  f5 {[%clk 0:02:34]} 12. dxc6 {[%clk 0:01:57]}  bxc6 {[%clk 0:02:30]} 13. a3 {[%clk 0:01:53]}  Ba5 {[%clk 0:02:26]} 14. Nxa5 {[%clk 0:01:52]}  Qxa5 {[%clk 0:02:27]} 15. Qd2 {[%clk 0:01:48]}  Qc7 {[%clk 0:02:21]} 16. Bc4+ {[%clk 0:01:43]}  Kh8 {[%clk 0:02:20]} 17. Bb3 {[%clk 0:01:42]}  f4 {[%clk 0:02:18]} 18. Rad1 {[%clk 0:01:39]}  fxe3 {[%clk 0:02:10]} 19. Qxd6 {[%clk 0:01:30]}  Qxd6 {[%clk 0:01:59]} 20. Rxd6 {[%clk 0:01:30]}  Ba6 {[%clk 0:01:57]} 21. c4 {[%clk 0:01:26]}  e2 {[%clk 0:01:21]} 22. Re1 {[%clk 0:01:25]}  Rab8 {[%clk 0:01:22]} 23. Rxc6 {[%clk 0:01:18]}  Bc8 {[%clk 0:00:58]} 24. Bc2 {[%clk 0:01:00]}  Rxb2 {[%clk 0:00:57]} 25. Rxe2 {[%clk 0:01:00]}  Bf5 {[%clk 0:00:50]} 26. Bd3 {[%clk 0:00:45]}  Rbb8 {[%clk 0:00:10]} 27. Bxf5 {[%clk 0:00:42]}  Rxf5 {[%clk 0:00:11]} 28. g4 {[%clk 0:00:36]}  Rg5 {[%clk 0:00:10]} 29. h3 {[%clk 0:00:36]}  h5 {[%clk 0:00:10]} 30. Re4 {[%clk 0:00:29]}  Rb3 {[%clk 0:00:07]} 31. Kg2 {[%clk 0:00:21]}  Rxa3 {[%clk 0:00:06]} 32. Re6 {[%clk 0:00:21]}  hxg4 {[%clk 0:00:05]} 33. hxg4 {[%clk 0:00:19]}  Ra5 {[%clk 0:00:05]} 34. Kg3 {[%clk 0:00:15]}  Kh7 {[%clk 0:00:04]} 35. f3 {[%clk 0:00:14]}  Rc5 {[%clk 0:00:02]} 36. Re1 {[%clk 0:00:11]}  a5 {[%clk 0:00:02]} 37. Rh1+ {[%clk 0:00:09]}  Kg8 {[%clk 0:00:03]} 38. Kh4 {[%clk 0:00:09]}  Kf7 {[%clk 0:00:03]} 39. Kxg5 {[%clk 0:00:07]}  Kxe6 {[%clk 0:00:03]} 40. Kg6 {[%clk 0:00:07]}  Rc7 {[%clk 0:00:03]} 41. Ra1 {[%clk 0:00:06]}  Rxc4 {[%clk 0:00:02]} 42. Rxa5 {[%clk 0:00:05]}  Rc3 {[%clk 0:00:03]} 43. Ra6+ {[%clk 0:00:04]}  Kd5 {[%clk 0:00:03]} 44. Kxg7 {[%clk 0:00:05]}  Rxf3 {[%clk 0:00:03]} 45. g5 {[%clk 0:00:05]}  Rg3 {[%clk 0:00:04]} 46. g6 {[%clk 0:00:06]}  Ke4 {[%clk 0:00:04]} 47. Ra4+ {[%clk 0:00:06]}  Kf5 {[%clk 0:00:04]} 48. Ra6 {[%clk 0:00:06]}  e4 {[%clk 0:00:05]} 49. Rf6+ {[%clk 0:00:07]}  Ke5 {[%clk 0:00:05]} 50. Kf7 {[%clk 0:00:07]}  e3 {[%clk 0:00:05]} 51. g7 {[%clk 0:00:05]}  Kd4 {[%clk 0:00:06]} 52. Re6 {[%clk 0:00:04]}  Kd3 {[%clk 0:00:05]} 53. Rg6 {[%clk 0:00:03]}  Rxg6 {[%clk 0:00:05]} 54. Kxg6 {[%clk 0:00:04]}  e2 {[%clk 0:00:06]} 55. g8=Q {[%clk 0:00:04]}  e1=Q {[%clk 0:00:07]} 56. Qd5+ {[%clk 0:00:04]}  Ke2 {[%clk 0:00:06]} 57. Qe4+ {[%clk 0:00:04]}  Kf2 {[%clk 0:00:07]} 58. Qf4+ {[%clk 0:00:04]}  Ke2 {[%clk 0:00:07]} 59. Qe4+ {[%clk 0:00:04]}  Kd2 {[%clk 0:00:08]} 60. Qb4+ {[%clk 0:00:04]}  Ke2 {[%clk 0:00:08]} 61. Qb2+ {[%clk 0:00:04]}  Qd2 {[%clk 0:00:08]} 62. Qe5+ {[%clk 0:00:05]}  Qe3 {[%clk 0:00:08]} 63. Qh2+ {[%clk 0:00:05]}  Kd3 {[%clk 0:00:09]} 64. Qh5 {[%clk 0:00:04]}  Qe4+ {[%clk 0:00:09]} 65. Qf5 {[%clk 0:00:04]}  Ke3 {[%clk 0:00:09]} 66. Qxe4+ {[%clk 0:00:03]}  Kxe4 {[%clk 0:00:10]} 1/2-1/2


[Site "https://www.chess.com"]

[Event "Titled Tuesday Blitz November 22 Late 2022"]
[White "Ibarra Jerez, Jose Carlos"]
[Black "Ghazarian, Kirk"]
[WhiteFideId "2226332"]
[BlackFideId "30908604"]
[WhiteElo "2638"]
[BlackElo "2346"]
[Result "1/2-1/2"]
[Round "07"]
[TimeControl "180+1"]
[Date "2022.11.22"]
[WhiteClock "0:00:03"]
[BlackClock "0:00:06"]

1. Nf3 {[%clk 0:02:58]}  d5 {[%clk 0:02:56]} 2. g3 {[%clk 0:02:58]}  Nd7 {[%clk 0:02:54]} 3. c4 {[%clk 0:02:56]}  dxc4 {[%clk 0:02:53]} 4. Qa4 {[%clk 0:02:56]}  Nf6 {[%clk 0:02:52]} 5. Bg2 {[%clk 0:02:54]}  g6 {[%clk 0:02:53]} 6. Qxc4 {[%clk 0:02:52]}  Bg7 {[%clk 0:02:53]} 7. d4 {[%clk 0:02:51]}  O-O {[%clk 0:02:54]} 8. O-O {[%clk 0:02:52]}  Nb6 {[%clk 0:02:53]} 9. Qb3 {[%clk 0:02:47]}  Be6 {[%clk 0:02:53]} 10. Qa3 {[%clk 0:02:42]}  Nc4 {[%clk 0:02:53]} 11. Qc3 {[%clk 0:02:36]}  Nd6 {[%clk 0:02:50]} 12. Nbd2 {[%clk 0:02:31]}  Nfe4 {[%clk 0:02:49]} 13. Nxe4 {[%clk 0:02:29]}  Nxe4 {[%clk 0:02:50]} 14. Qc2 {[%clk 0:02:30]}  Bd5 {[%clk 0:02:48]} 15. Ne5 {[%clk 0:02:23]}  Nf6 {[%clk 0:02:39]} 16. e4 {[%clk 0:02:22]}  Be6 {[%clk 0:02:40]} 17. d5 {[%clk 0:02:20]}  Bd7 {[%clk 0:02:38]} 18. Rd1 {[%clk 0:01:56]}  Ng4 {[%clk 0:02:14]} 19. Nc6 {[%clk 0:01:24]}  Qe8 {[%clk 0:02:02]} 20. Na5 {[%clk 0:01:20]}  b6 {[%clk 0:01:55]} 21. Nc6 {[%clk 0:01:04]}  Bxc6 {[%clk 0:01:55]} 22. dxc6 {[%clk 0:01:05]}  Ne5 {[%clk 0:01:53]} 23. f4 {[%clk 0:01:05]}  Qxc6 {[%clk 0:01:41]} 24. Qe2 {[%clk 0:00:44]}  Qc4 {[%clk 0:01:35]} 25. Bf1 {[%clk 0:00:32]}  Qxe2 {[%clk 0:01:26]} 26. Bxe2 {[%clk 0:00:33]}  Nc6 {[%clk 0:01:27]} 27. Rd7 {[%clk 0:00:32]}  Rfd8 {[%clk 0:01:13]} 28. Rxc7 {[%clk 0:00:32]}  Rac8 {[%clk 0:01:08]} 29. Rxc8 {[%clk 0:00:29]}  Rxc8 {[%clk 0:01:09]} 30. e5 {[%clk 0:00:30]}  f6 {[%clk 0:01:01]} 31. Bg4 {[%clk 0:00:29]}  Rd8 {[%clk 0:00:56]} 32. exf6 {[%clk 0:00:25]}  Bxf6 {[%clk 0:00:55]} 33. Rb1 {[%clk 0:00:19]}  Kg7 {[%clk 0:00:39]} 34. Be3 {[%clk 0:00:18]}  Bd4 {[%clk 0:00:38]} 35. Kf2 {[%clk 0:00:19]}  Nb4 {[%clk 0:00:33]} 36. Bxd4+ {[%clk 0:00:17]}  Rxd4 {[%clk 0:00:32]} 37. a3 {[%clk 0:00:18]}  Nd5 {[%clk 0:00:24]} 38. Ke2 {[%clk 0:00:13]}  e5 {[%clk 0:00:22]} 39. Rc1 {[%clk 0:00:05]}  exf4 {[%clk 0:00:20]} 40. gxf4 {[%clk 0:00:06]}  Rxf4 {[%clk 0:00:17]} 41. Bf3 {[%clk 0:00:06]}  Rf5 {[%clk 0:00:12]} 42. Bxd5 {[%clk 0:00:06]}  Rxd5 {[%clk 0:00:12]} 43. Rc7+ {[%clk 0:00:06]}  Kh6 {[%clk 0:00:12]} 44. Rxa7 {[%clk 0:00:06]}  Rh5 {[%clk 0:00:13]} 45. b4 {[%clk 0:00:06]}  Rxh2+ {[%clk 0:00:13]} 46. Kd3 {[%clk 0:00:07]}  b5 {[%clk 0:00:09]} 47. Ra5 {[%clk 0:00:06]}  g5 {[%clk 0:00:09]} 48. Ke4 {[%clk 0:00:04]}  Rh3 {[%clk 0:00:07]} 49. Kf5 {[%clk 0:00:03]}  Rf3+ {[%clk 0:00:07]} 50. Kg4 {[%clk 0:00:04]}  Rf4+ {[%clk 0:00:06]} 51. Kg3 {[%clk 0:00:04]}  Rc4 {[%clk 0:00:07]} 52. Rxb5 {[%clk 0:00:04]}  Rc3+ {[%clk 0:00:07]} 53. Kg4 {[%clk 0:00:04]}  Rxa3 {[%clk 0:00:07]} 54. Rb6+ {[%clk 0:00:05]}  Kg7 {[%clk 0:00:07]} 55. Kxg5 {[%clk 0:00:06]}  Rb3 {[%clk 0:00:07]} 56. Rb7+ {[%clk 0:00:05]}  Kf8 {[%clk 0:00:07]} 57. Kf6 {[%clk 0:00:05]}  Ke8 {[%clk 0:00:07]} 58. Ke6 {[%clk 0:00:06]}  Kd8 {[%clk 0:00:08]} 59. Kd6 {[%clk 0:00:06]}  Kc8 {[%clk 0:00:08]} 60. Rb5 {[%clk 0:00:06]}  h5 {[%clk 0:00:08]} 61. Kc6 {[%clk 0:00:05]}  Rc3+ {[%clk 0:00:07]} 62. Kb6 {[%clk 0:00:04]}  h4 {[%clk 0:00:06]} 63. Rh5 {[%clk 0:00:04]}  h3 {[%clk 0:00:06]} 64. Rh8+ {[%clk 0:00:04]}  Kd7 {[%clk 0:00:06]} 65. b5 {[%clk 0:00:05]}  Rb3 {[%clk 0:00:04]} 66. Ka6 {[%clk 0:00:04]}  Kd6 {[%clk 0:00:02]} 67. Rh6+ {[%clk 0:00:03]}  Ke5 {[%clk 0:00:02]} 68. b6 {[%clk 0:00:03]}  Kf4 {[%clk 0:00:03]} 69. b7 {[%clk 0:00:03]}  Rxb7 {[%clk 0:00:03]} 70. Kxb7 {[%clk 0:00:02]}  Kg3 {[%clk 0:00:03]} 71. Kc6 {[%clk 0:00:02]}  h2 {[%clk 0:00:04]} 72. Rg6+ {[%clk 0:00:02]}  Kf2 {[%clk 0:00:04]} 73. Rh6 {[%clk 0:00:03]}  Kg2 {[%clk 0:00:05]} 74. Rxh2+ {[%clk 0:00:03]}  Kxh2 {[%clk 0:00:06]} 1/2-1/2


[Site "https://www.chess.com"]